[Event "Early Titled Tuesday Blitz | February 8 2022"]
[White "Artemenko, Oleg"]
[Black "Lakshmi C"]
[WhiteFideId "14201798"]
[BlackFideId "25035347"]
[WhiteElo "2287"]
[BlackElo "1775"]
[Result "1-0"]
[Round "01"]
[TimeControl "180+1"]
[Date "2022.02.08"]
[WhiteClock "0:01:27"]
[BlackClock "0:00:06"]

1. d4 {[%clk 0:03:00]}  Nf6 {[%clk 0:02:59]} 2. Nc3 {[%clk 0:03:01]}  d5 {[%clk 0:02:59]} 3. Bf4 {[%clk 0:03:01]}  e6 {[%clk 0:02:59]} 4. Nb5 {[%clk 0:03:01]}  Na6 {[%clk 0:02:58]} 5. e3 {[%clk 0:03:01]}  c6 {[%clk 0:02:58]} 6. Nc3 {[%clk 0:03:02]}  Bd6 {[%clk 0:02:57]} 7. Bxa6 {[%clk 0:03:01]}  bxa6 {[%clk 0:02:57]} 8. Nf3 {[%clk 0:03:02]}  O-O {[%clk 0:02:51]} 9. O-O {[%clk 0:03:01]}  c5 {[%clk 0:02:51]} 10. Na4 {[%clk 0:02:57]}  c4 {[%clk 0:02:46]} 11. c3 {[%clk 0:02:54]}  Rb8 {[%clk 0:02:43]} 12. Rb1 {[%clk 0:02:49]}  Bxf4 {[%clk 0:02:38]} 13. exf4 {[%clk 0:02:49]}  Ne4 {[%clk 0:02:38]} 14. Nd2 {[%clk 0:02:48]}  f5 {[%clk 0:02:35]} 15. f3 {[%clk 0:02:47]}  Nd6 {[%clk 0:02:31]} 16. Nc5 {[%clk 0:02:43]}  Rf6 {[%clk 0:02:29]} 17. Re1 {[%clk 0:02:42]}  Rh6 {[%clk 0:02:29]} 18. Qe2 {[%clk 0:02:41]}  Kf7 {[%clk 0:02:26]} 19. Nf1 {[%clk 0:02:39]}  Rb6 {[%clk 0:01:39]} 20. g3 {[%clk 0:02:36]}  Ne8 {[%clk 0:01:38]} 21. b3 {[%clk 0:02:33]}  cxb3 {[%clk 0:01:35]} 22. axb3 {[%clk 0:02:32]}  Nc7 {[%clk 0:01:30]} 23. Ne3 {[%clk 0:02:29]}  Rf6 {[%clk 0:01:28]} 24. Nd1 {[%clk 0:02:28]}  h6 {[%clk 0:01:28]} 25. Nf2 {[%clk 0:02:28]}  g5 {[%clk 0:01:24]} 26. fxg5 {[%clk 0:02:28]}  hxg5 {[%clk 0:01:24]} 27. Nfd3 {[%clk 0:02:29]}  Rh6 {[%clk 0:01:23]} 28. Ne5+ {[%clk 0:02:28]}  Kg8 {[%clk 0:01:23]} 29. Ra1 {[%clk 0:02:24]}  Qd6 {[%clk 0:01:08]} 30. f4 {[%clk 0:02:21]}  g4 {[%clk 0:01:07]} 31. Ned3 {[%clk 0:02:08]}  Nb5 {[%clk 0:01:02]} 32. Qd2 {[%clk 0:02:06]}  Qf8 {[%clk 0:00:53]} 33. Re2 {[%clk 0:02:04]}  Qf6 {[%clk 0:00:29]} 34. Rae1 {[%clk 0:02:00]}  Nc7 {[%clk 0:00:27]} 35. Qa2 {[%clk 0:01:56]}  Qg7 {[%clk 0:00:27]} 36. Qa4 {[%clk 0:01:54]}  Nb5 {[%clk 0:00:27]} 37. Qa5 {[%clk 0:01:48]}  Qc7 {[%clk 0:00:26]} 38. Ne5 {[%clk 0:01:44]}  Rb7 {[%clk 0:00:23]} 39. Nxb7 {[%clk 0:01:43]}  Qxb7 {[%clk 0:00:23]} 40. Qd8+ {[%clk 0:01:43]}  Kh7 {[%clk 0:00:23]} 41. Nf7 {[%clk 0:01:40]}  Qxf7 {[%clk 0:00:21]} 42. Qxc8 {[%clk 0:01:38]}  Rg6 {[%clk 0:00:21]} 43. Rxe6 {[%clk 0:01:37]}  Nd6 {[%clk 0:00:21]} 44. Rxd6 {[%clk 0:01:30]}  Rxd6 {[%clk 0:00:21]} 45. Re5 {[%clk 0:01:27]}  Kg6 {[%clk 0:00:14]} 46. Qh8 {[%clk 0:01:25]}  Rb6 {[%clk 0:00:12]} 47. Qh4 {[%clk 0:01:23]}  Rxb3 {[%clk 0:00:11]} 48. Qg5+ {[%clk 0:01:23]}  Kh7 {[%clk 0:00:11]} 49. Re7 {[%clk 0:01:23]}  Rb1+ {[%clk 0:00:11]} 50. Kf2 {[%clk 0:01:23]}  Rb2+ {[%clk 0:00:11]} 51. Ke3 {[%clk 0:01:23]}  Qxe7+ {[%clk 0:00:09]} 52. Qxe7+ {[%clk 0:01:24]}  Kg6 {[%clk 0:00:09]} 53. Qe6+ {[%clk 0:01:24]}  Kg7 {[%clk 0:00:08]} 54. Qxf5 {[%clk 0:01:24]}  Rxh2 {[%clk 0:00:08]} 55. Qxg4+ {[%clk 0:01:25]}  Kf6 {[%clk 0:00:08]} 56. Qg5+ {[%clk 0:01:25]}  Ke6 {[%clk 0:00:08]} 57. f5+ {[%clk 0:01:25]}  Kd7 {[%clk 0:00:08]} 58. f6 {[%clk 0:01:25]}  Ke8 {[%clk 0:00:08]} 59. Qg8+ {[%clk 0:01:25]}  Kd7 {[%clk 0:00:08]} 60. f7 {[%clk 0:01:26]}  Rc2 {[%clk 0:00:07]} 61. f8=Q {[%clk 0:01:26]}  Rxc3+ {[%clk 0:00:08]} 62. Kd2 {[%clk 0:01:26]}  Rb3 {[%clk 0:00:06]} 63. Qxd5+ {[%clk 0:01:26]}  Kc7 {[%clk 0:00:06]} 64. Qfd8# {[%clk 0:01:27]} 1-0


[Site "https://www.chess.com"]

[Event "Early Titled Tuesday Blitz | February 8 2022"]
[White "Avazkhonov, Alikhon"]
[Black "Fawzy, Adham"]
[WhiteFideId "14208504"]
[BlackFideId "10613129"]
[WhiteElo "1739"]
[BlackElo "2510"]
[Result "0-1"]
[Round "01"]
[TimeControl "180+1"]
[Date "2022.02.08"]
[WhiteClock "0:00:01"]
[BlackClock "0:00:59"]

1. f4 {[%clk 0:02:58]}  c5 {[%clk 0:02:40]} 2. Nf3 {[%clk 0:02:57]}  Nc6 {[%clk 0:02:41]} 3. g3 {[%clk 0:02:57]}  g6 {[%clk 0:02:41]} 4. Bg2 {[%clk 0:02:56]}  Bg7 {[%clk 0:02:41]} 5. O-O {[%clk 0:02:55]}  d6 {[%clk 0:02:42]} 6. d3 {[%clk 0:02:55]}  e5 {[%clk 0:02:43]} 7. e4 {[%clk 0:02:53]}  Nge7 {[%clk 0:02:43]} 8. Nc3 {[%clk 0:02:52]}  O-O {[%clk 0:02:31]} 9. f5 {[%clk 0:02:51]}  gxf5 {[%clk 0:02:32]} 10. Nh4 {[%clk 0:02:50]}  Nd4 {[%clk 0:02:31]} 11. Bg5 {[%clk 0:02:11]}  f6 {[%clk 0:02:28]} 12. Be3 {[%clk 0:02:05]}  fxe4 {[%clk 0:02:23]} 13. dxe4 {[%clk 0:01:44]}  f5 {[%clk 0:02:23]} 14. Bg5 {[%clk 0:01:19]}  Bf6 {[%clk 0:01:54]} 15. Bxf6 {[%clk 0:00:37]}  Rxf6 {[%clk 0:01:55]} 16. exf5 {[%clk 0:00:25]}  Nexf5 {[%clk 0:01:52]} 17. Nd5 {[%clk 0:00:12]}  Rf7 {[%clk 0:01:52]} 18. Qh5 {[%clk 0:00:07]}  Be6 {[%clk 0:01:43]} 19. c3 {[%clk 0:00:03]}  Nxh4 {[%clk 0:01:30]} 20. gxh4 {[%clk 0:00:03]}  Nf5 {[%clk 0:01:26]} 21. Be4 {[%clk 0:00:03]}  Rg7+ {[%clk 0:01:00]} 22. Kh1 {[%clk 0:00:02]}  Qxh4 {[%clk 0:01:00]} 23. Qxh4 {[%clk 0:00:01]}  Nxh4 {[%clk 0:00:59]} 24. Nf6+ {[%clk 0:00:01]}  Kh8 {[%clk 0:01:00]} 25. Rg1 {[%clk 0:00:02]}  Rf8 {[%clk 0:00:58]} 26. Rxg7 {[%clk 0:00:01]}  Kxg7 {[%clk 0:00:59]} 27. Nh5+ {[%clk 0:00:01]}  Kh6 {[%clk 0:00:59]} 0-1


[Site "https://www.chess.com"]

[Event "Early Titled Tuesday Blitz | February 8 2022"]
[White "Bashirli, Saadat"]
[Black "Kuzmin, Roman"]
[WhiteFideId "13429990"]
[BlackFideId "44134932"]
[WhiteElo "1173"]
[BlackElo "1978"]
[Result "0-1"]
[Round "01"]
[TimeControl "180+1"]
[Date "2022.02.08"]
[WhiteClock "0:00:09"]
[BlackClock "0:00:27"]

1. d4 {[%clk 0:02:58]}  d5 {[%clk 0:02:58]} 2. Bg5 {[%clk 0:02:56]}  Nf6 {[%clk 0:02:55]} 3. Nd2 {[%clk 0:02:55]}  e6 {[%clk 0:02:46]} 4. e4 {[%clk 0:02:51]}  dxe4 {[%clk 0:02:46]} 5. Nxe4 {[%clk 0:02:49]}  Be7 {[%clk 0:02:45]} 6. Bxf6 {[%clk 0:02:48]}  gxf6 {[%clk 0:02:44]} 7. c3 {[%clk 0:02:47]}  f5 {[%clk 0:02:44]} 8. Nd2 {[%clk 0:02:45]}  b6 {[%clk 0:02:40]} 9. Ngf3 {[%clk 0:02:42]}  Bb7 {[%clk 0:02:34]} 10. Bc4 {[%clk 0:02:39]}  Nd7 {[%clk 0:02:28]} 11. Qe2 {[%clk 0:02:31]}  Nf6 {[%clk 0:02:23]} 12. Ne5 {[%clk 0:02:23]}  Bd5 {[%clk 0:01:53]} 13. Bb5+ {[%clk 0:02:16]}  Kf8 {[%clk 0:01:52]} 14. Ndf3 {[%clk 0:02:07]}  Rg8 {[%clk 0:01:21]} 15. Rg1 {[%clk 0:02:00]}  a6 {[%clk 0:01:20]} 16. Bd3 {[%clk 0:01:56]}  c5 {[%clk 0:01:06]} 17. dxc5 {[%clk 0:01:36]}  bxc5 {[%clk 0:01:05]} 18. c4 {[%clk 0:01:35]}  Be4 {[%clk 0:01:05]} 19. Bxe4 {[%clk 0:01:32]}  fxe4 {[%clk 0:00:58]} 20. Nd2 {[%clk 0:01:29]}  Qd6 {[%clk 0:00:45]} 21. f4 {[%clk 0:01:19]}  Rb8 {[%clk 0:00:42]} 22. Rb1 {[%clk 0:01:12]}  Qd4 {[%clk 0:00:41]} 23. Rf1 {[%clk 0:01:07]}  Rb6 {[%clk 0:00:41]} 24. Nb3 {[%clk 0:01:02]}  Qd6 {[%clk 0:00:39]} 25. Rd1 {[%clk 0:01:00]}  Qc7 {[%clk 0:00:38]} 26. Qe3 {[%clk 0:00:50]}  Rxg2 {[%clk 0:00:37]} 27. Rf2 {[%clk 0:00:38]}  Rg1+ {[%clk 0:00:37]} 28. Rf1 {[%clk 0:00:38]}  Rxf1+ {[%clk 0:00:36]} 29. Kxf1 {[%clk 0:00:39]}  a5 {[%clk 0:00:35]} 30. Nxa5 {[%clk 0:00:37]}  Rxb2 {[%clk 0:00:36]} 31. Nac6 {[%clk 0:00:36]}  Rxa2 {[%clk 0:00:36]} 32. Nxe7 {[%clk 0:00:34]}  Kxe7 {[%clk 0:00:37]} 33. Qb3 {[%clk 0:00:31]}  Ra8 {[%clk 0:00:37]} 34. Qb5 {[%clk 0:00:30]}  Kf8 {[%clk 0:00:34]} 35. Nc6 {[%clk 0:00:28]}  Qxf4+ {[%clk 0:00:34]} 36. Ke1 {[%clk 0:00:28]}  Ra2 {[%clk 0:00:34]} 37. Qxc5+ {[%clk 0:00:27]}  Kg7 {[%clk 0:00:33]} 38. Qg1+ {[%clk 0:00:26]}  Ng4 {[%clk 0:00:32]} 39. Qd4+ {[%clk 0:00:24]}  f6 {[%clk 0:00:29]} 40. Qd7+ {[%clk 0:00:23]}  Kh6 {[%clk 0:00:29]} 41. Rd2 {[%clk 0:00:15]}  Qe3+ {[%clk 0:00:27]} 42. Kd1 {[%clk 0:00:14]}  Nf2+ {[%clk 0:00:28]} 43. Kc1 {[%clk 0:00:11]}  Nd3+ {[%clk 0:00:27]} 44. Kd1 {[%clk 0:00:09]}  Rxd2# {[%clk 0:00:27]} 0-1


[Site "https://www.chess.com"]

[Event "Early Titled Tuesday Blitz | February 8 2022"]
[White "Bodnaruk, Anastasia"]
[Black "Dejmek, Mark"]
[WhiteFideId "4181751"]
[BlackFideId "2017628"]
[WhiteElo "2393"]
[BlackElo "2200"]
[Result "1-0"]
[Round "01"]
[TimeControl "180+1"]
[Date "2022.02.08"]
[WhiteClock "0:00:45"]
[BlackClock "0:00:01"]

1. e4 {[%clk 0:03:00]}  e5 {[%clk 0:02:58]} 2. Nf3 {[%clk 0:03:00]}  Nc6 {[%clk 0:02:58]} 3. Bb5 {[%clk 0:03:00]}  a6 {[%clk 0:02:58]} 4. Ba4 {[%clk 0:03:00]}  Nf6 {[%clk 0:02:58]} 5. O-O {[%clk 0:03:00]}  Be7 {[%clk 0:02:56]} 6. Re1 {[%clk 0:03:00]}  b5 {[%clk 0:02:56]} 7. Bb3 {[%clk 0:03:00]}  d6 {[%clk 0:02:56]} 8. a4 {[%clk 0:02:59]}  Rb8 {[%clk 0:02:45]} 9. c3 {[%clk 0:02:55]}  O-O {[%clk 0:02:41]} 10. h3 {[%clk 0:02:52]}  Nd7 {[%clk 0:02:06]} 11. d4 {[%clk 0:02:41]}  Bf6 {[%clk 0:01:55]} 12. axb5 {[%clk 0:02:35]}  axb5 {[%clk 0:01:55]} 13. d5 {[%clk 0:02:35]}  Ne7 {[%clk 0:01:50]} 14. Nbd2 {[%clk 0:02:31]}  Ng6 {[%clk 0:01:33]} 15. Nf1 {[%clk 0:02:31]}  Nc5 {[%clk 0:01:24]} 16. Bc2 {[%clk 0:02:30]}  b4 {[%clk 0:01:24]} 17. Ng3 {[%clk 0:02:25]}  bxc3 {[%clk 0:01:20]} 18. bxc3 {[%clk 0:02:25]}  Nf4 {[%clk 0:01:05]} 19. Nf5 {[%clk 0:02:12]}  g6 {[%clk 0:00:54]} 20. Nh6+ {[%clk 0:02:11]}  Kg7 {[%clk 0:00:50]} 21. Ng4 {[%clk 0:02:11]}  Bxg4 {[%clk 0:00:45]} 22. hxg4 {[%clk 0:02:11]}  g5 {[%clk 0:00:32]} 23. g3 {[%clk 0:02:04]}  Ng6 {[%clk 0:00:32]} 24. Kg2 {[%clk 0:02:05]}  Rh8 {[%clk 0:00:28]} 25. Rh1 {[%clk 0:02:04]}  h6 {[%clk 0:00:21]} 26. Nd2 {[%clk 0:01:51]}  Qd7 {[%clk 0:00:19]} 27. Nc4 {[%clk 0:01:51]}  Rh7 {[%clk 0:00:13]} 28. Ne3 {[%clk 0:01:51]}  Rbh8 {[%clk 0:00:10]} 29. Nf5+ {[%clk 0:01:50]}  Kg8 {[%clk 0:00:10]} 30. Ra8+ {[%clk 0:01:48]}  Nf8 {[%clk 0:00:11]} 31. Qf3 {[%clk 0:01:46]}  c6 {[%clk 0:00:07]} 32. Be3 {[%clk 0:01:35]}  cxd5 {[%clk 0:00:07]} 33. exd5 {[%clk 0:01:35]}  Qb7 {[%clk 0:00:06]} 34. Re8 {[%clk 0:01:26]}  e4 {[%clk 0:00:05]} 35. Bxe4 {[%clk 0:01:19]}  Nxe4 {[%clk 0:00:06]} 36. Qxe4 {[%clk 0:01:19]}  Bxc3 {[%clk 0:00:03]} 37. Bd4 {[%clk 0:00:59]}  Bxd4 {[%clk 0:00:03]} 38. Qxd4 {[%clk 0:01:00]}  f6 {[%clk 0:00:03]} 39. Qxf6 {[%clk 0:00:50]}  Qxd5+ {[%clk 0:00:03]} 40. f3 {[%clk 0:00:50]}  Qf7 {[%clk 0:00:01]} 41. Ne7+ {[%clk 0:00:45]} 1-0


[Site "https://www.chess.com"]

[Event "Early Titled Tuesday Blitz | February 8 2022"]
[White "Buscar, Michael"]
[Black "Vignesh, N R"]
[WhiteFideId "2603616"]
[BlackFideId "25012215"]
[WhiteElo "2010"]
[BlackElo "2395"]
[Result "1-0"]
[Round "01"]
[TimeControl "180+1"]
[Date "2022.02.08"]
[WhiteClock "0:00:20"]
[BlackClock "0:00:30"]

1. c4 {[%clk 0:02:55]}  e5 {[%clk 0:02:57]} 2. Nc3 {[%clk 0:02:52]}  Nf6 {[%clk 0:02:56]} 3. Nf3 {[%clk 0:02:49]}  Nc6 {[%clk 0:02:55]} 4. g3 {[%clk 0:02:48]}  d5 {[%clk 0:02:52]} 5. cxd5 {[%clk 0:02:47]}  Nxd5 {[%clk 0:02:53]} 6. Bg2 {[%clk 0:02:43]}  Nb6 {[%clk 0:02:50]} 7. d3 {[%clk 0:02:41]}  Be7 {[%clk 0:02:48]} 8. O-O {[%clk 0:02:40]}  O-O {[%clk 0:02:49]} 9. Be3 {[%clk 0:02:32]}  Be6 {[%clk 0:02:48]} 10. Rc1 {[%clk 0:02:31]}  f6 {[%clk 0:02:45]} 11. Nd2 {[%clk 0:02:29]}  Qd7 {[%clk 0:02:42]} 12. Re1 {[%clk 0:02:22]}  Kh8 {[%clk 0:02:33]} 13. Nb3 {[%clk 0:02:22]}  Nd5 {[%clk 0:02:25]} 14. Bc5 {[%clk 0:02:16]}  Nxc3 {[%clk 0:02:17]} 15. Rxc3 {[%clk 0:02:10]}  Bd5 {[%clk 0:02:16]} 16. Bxe7 {[%clk 0:02:06]}  Nxe7 {[%clk 0:02:15]} 17. Nc5 {[%clk 0:02:06]}  Qb5 {[%clk 0:02:12]} 18. Qc1 {[%clk 0:01:26]}  Bxg2 {[%clk 0:02:10]} 19. Kxg2 {[%clk 0:01:26]}  b6 {[%clk 0:02:09]} 20. a4 {[%clk 0:01:18]}  Qc6+ {[%clk 0:01:41]} 21. Ne4 {[%clk 0:01:16]}  Qd5 {[%clk 0:01:41]} 22. Rxc7 {[%clk 0:01:08]}  Rac8 {[%clk 0:01:41]} 23. Qc4 {[%clk 0:00:57]}  Rxc7 {[%clk 0:01:16]} 24. Qxc7 {[%clk 0:00:57]}  Nc6 {[%clk 0:01:11]} 25. f3 {[%clk 0:00:51]}  f5 {[%clk 0:01:04]} 26. Qd6 {[%clk 0:00:48]}  Qxd6 {[%clk 0:00:59]} 27. Nxd6 {[%clk 0:00:49]}  f4 {[%clk 0:00:57]} 28. Rc1 {[%clk 0:00:48]}  Nd4 {[%clk 0:00:56]} 29. Kf2 {[%clk 0:00:46]}  h5 {[%clk 0:00:45]} 30. Rc8 {[%clk 0:00:43]}  Kg8 {[%clk 0:00:42]} 31. b4 {[%clk 0:00:32]}  a5 {[%clk 0:00:37]} 32. b5 {[%clk 0:00:26]}  Ne6 {[%clk 0:00:31]} 33. Rc6 {[%clk 0:00:20]}  Nc5 {[%clk 0:00:30]} 34. Rxb6 {[%clk 0:00:19]}  Nxa4 {[%clk 0:00:30]} 35. Ra6 {[%clk 0:00:20]} 1-0


[Site "https://www.chess.com"]

[Event "Early Titled Tuesday Blitz | February 8 2022"]
[White "Cherniaiev, Tykhon"]
[Black "Kazarian, Anna-Maja"]
[WhiteFideId "14182360"]
[BlackFideId "1033689"]
[WhiteElo "2289"]
[BlackElo "2004"]
[Result "1/2-1/2"]
[Round "01"]
[TimeControl "180+1"]
[Date "2022.02.08"]
[WhiteClock "0:00:07"]
[BlackClock "0:00:02"]

1. Nf3 {[%clk 0:02:55]}  Nf6 {[%clk 0:02:57]} 2. c4 {[%clk 0:02:48]}  e6 {[%clk 0:02:56]} 3. b3 {[%clk 0:02:48]}  d5 {[%clk 0:02:56]} 4. Bb2 {[%clk 0:02:48]}  Be7 {[%clk 0:02:56]} 5. g3 {[%clk 0:02:49]}  O-O {[%clk 0:02:56]} 6. Bg2 {[%clk 0:02:49]}  c5 {[%clk 0:02:56]} 7. cxd5 {[%clk 0:02:48]}  exd5 {[%clk 0:02:55]} 8. d4 {[%clk 0:02:48]}  Nc6 {[%clk 0:02:52]} 9. O-O {[%clk 0:02:48]}  Bf5 {[%clk 0:02:46]} 10. Nc3 {[%clk 0:02:48]}  Bg6 {[%clk 0:02:38]} 11. Rc1 {[%clk 0:02:47]}  b6 {[%clk 0:02:30]} 12. dxc5 {[%clk 0:02:45]}  bxc5 {[%clk 0:02:26]} 13. Na4 {[%clk 0:02:45]}  Qa5 {[%clk 0:02:21]} 14. Bxf6 {[%clk 0:02:45]}  Bxf6 {[%clk 0:02:18]} 15. Qxd5 {[%clk 0:02:45]}  Nb4 {[%clk 0:02:11]} 16. Qxc5 {[%clk 0:02:37]}  Qxc5 {[%clk 0:02:10]} 17. Rxc5 {[%clk 0:02:30]}  Nxa2 {[%clk 0:02:09]} 18. Ne5 {[%clk 0:02:28]}  Rad8 {[%clk 0:02:03]} 19. Nc6 {[%clk 0:01:44]}  Rd2 {[%clk 0:01:56]} 20. e4 {[%clk 0:01:44]}  a6 {[%clk 0:01:23]} 21. e5 {[%clk 0:01:42]}  Bg5 {[%clk 0:01:16]} 22. f4 {[%clk 0:01:40]}  Bd8 {[%clk 0:01:15]} 23. f5 {[%clk 0:01:28]}  Bh5 {[%clk 0:01:08]} 24. Nxd8 {[%clk 0:01:28]}  Rfxd8 {[%clk 0:01:06]} 25. e6 {[%clk 0:01:28]}  Re2 {[%clk 0:00:52]} 26. h3 {[%clk 0:01:22]}  fxe6 {[%clk 0:00:34]} 27. fxe6 {[%clk 0:01:20]}  Bg6 {[%clk 0:00:33]} 28. Nb6 {[%clk 0:01:11]}  h6 {[%clk 0:00:26]} 29. Nd7 {[%clk 0:01:00]}  Nb4 {[%clk 0:00:16]} 30. Ne5 {[%clk 0:00:41]}  Be4 {[%clk 0:00:14]} 31. Bxe4 {[%clk 0:00:30]}  Rxe4 {[%clk 0:00:15]} 32. e7 {[%clk 0:00:27]}  Re8 {[%clk 0:00:16]} 33. Ng6 {[%clk 0:00:27]}  Kh7 {[%clk 0:00:07]} 34. Rf8 {[%clk 0:00:22]}  R4xe7 {[%clk 0:00:05]} 35. Rxe8 {[%clk 0:00:10]}  Rxe8 {[%clk 0:00:06]} 36. Nf4 {[%clk 0:00:11]}  Rd8 {[%clk 0:00:04]} 37. Rc7 {[%clk 0:00:11]}  Re8 {[%clk 0:00:03]} 38. Nh5 {[%clk 0:00:10]}  Kg6 {[%clk 0:00:03]} 39. Nxg7 {[%clk 0:00:09]}  Re3 {[%clk 0:00:03]} 40. g4 {[%clk 0:00:06]}  Rxb3 {[%clk 0:00:04]} 41. Nf5 {[%clk 0:00:04]}  Kg5 {[%clk 0:00:03]} 42. Kg2 {[%clk 0:00:04]}  Nd5 {[%clk 0:00:02]} 43. Rd7 {[%clk 0:00:02]}  Nf4+ {[%clk 0:00:02]} 44. Kh2 {[%clk 0:00:02]}  Rxh3+ {[%clk 0:00:02]} 45. Kg1 {[%clk 0:00:03]}  Kxg4 {[%clk 0:00:02]} 46. Nd4 {[%clk 0:00:03]}  Rg3+ {[%clk 0:00:02]} 47. Kf2 {[%clk 0:00:03]}  Ra3 {[%clk 0:00:02]} 48. Rg7+ {[%clk 0:00:03]}  Kh5 {[%clk 0:00:02]} 49. Nf5 {[%clk 0:00:03]}  Nh3+ {[%clk 0:00:02]} 50. Kg2 {[%clk 0:00:03]}  Ng5 {[%clk 0:00:03]} 51. Ng3+ {[%clk 0:00:03]}  Kg4 {[%clk 0:00:04]} 52. Nf1 {[%clk 0:00:04]}  Ra2+ {[%clk 0:00:04]} 53. Kg1 {[%clk 0:00:04]}  Kh3 {[%clk 0:00:02]} 54. Rb7 {[%clk 0:00:04]}  Nf3+ {[%clk 0:00:02]} 55. Kh1 {[%clk 0:00:04]}  Rf2 {[%clk 0:00:02]} 56. Rb1 {[%clk 0:00:05]}  a5 {[%clk 0:00:02]} 57. Ra1 {[%clk 0:00:05]}  a4 {[%clk 0:00:02]} 58. Rb1 {[%clk 0:00:05]}  a3 {[%clk 0:00:02]} 59. Ra1 {[%clk 0:00:06]}  a2 {[%clk 0:00:03]} 60. Rd1 {[%clk 0:00:07]}  Rb2 {[%clk 0:00:02]} 61. Ra1 {[%clk 0:00:06]}  Rb1 {[%clk 0:00:02]} 62. Rxb1 {[%clk 0:00:07]}  axb1=Q {[%clk 0:00:02]} 1/2-1/2


[Site "https://www.chess.com"]

[Event "Early Titled Tuesday Blitz | February 8 2022"]
[White "Chernomordik, Pavel"]
[Black "Alekseev, Evgeny"]
[WhiteFideId "2804530"]
[BlackFideId "4138147"]
[WhiteElo "2249"]
[BlackElo "2589"]
[Result "0-1"]
[Round "01"]
[TimeControl "180+1"]
[Date "2022.02.08"]
[WhiteClock "0:00:15"]
[BlackClock "0:00:20"]

1. e4 {[%clk 0:02:59]}  c5 {[%clk 0:02:58]} 2. Nc3 {[%clk 0:02:57]}  Nc6 {[%clk 0:02:57]} 3. Bb5 {[%clk 0:02:56]}  Nd4 {[%clk 0:02:55]} 4. Bc4 {[%clk 0:02:55]}  e6 {[%clk 0:02:52]} 5. Nge2 {[%clk 0:02:54]}  Nf6 {[%clk 0:02:51]} 6. O-O {[%clk 0:02:53]}  a6 {[%clk 0:02:50]} 7. a4 {[%clk 0:02:48]}  d6 {[%clk 0:02:35]} 8. d3 {[%clk 0:02:46]}  Nc6 {[%clk 0:02:33]} 9. Nf4 {[%clk 0:02:38]}  Be7 {[%clk 0:02:31]} 10. h3 {[%clk 0:02:37]}  O-O {[%clk 0:02:30]} 11. Re1 {[%clk 0:02:37]}  b6 {[%clk 0:02:22]} 12. Nce2 {[%clk 0:02:30]}  d5 {[%clk 0:02:13]} 13. exd5 {[%clk 0:02:28]}  exd5 {[%clk 0:02:13]} 14. Ba2 {[%clk 0:02:28]}  Bb7 {[%clk 0:01:33]} 15. Ng3 {[%clk 0:02:22]}  g6 {[%clk 0:01:33]} 16. c3 {[%clk 0:02:15]}  Re8 {[%clk 0:01:31]} 17. Bd2 {[%clk 0:02:12]}  Qd6 {[%clk 0:01:21]} 18. h4 {[%clk 0:01:53]}  Bf8 {[%clk 0:01:18]} 19. h5 {[%clk 0:01:45]}  Bg7 {[%clk 0:01:13]} 20. Nh3 {[%clk 0:01:40]}  Rxe1+ {[%clk 0:01:07]} 21. Qxe1 {[%clk 0:01:37]}  Re8 {[%clk 0:01:07]} 22. Qd1 {[%clk 0:01:36]}  Ne5 {[%clk 0:01:05]} 23. Bf4 {[%clk 0:01:25]}  Qd7 {[%clk 0:01:05]} 24. h6 {[%clk 0:01:18]}  Bf8 {[%clk 0:01:03]} 25. Qd2 {[%clk 0:01:06]}  Nf3+ {[%clk 0:00:51]} 26. gxf3 {[%clk 0:01:04]}  Qxh3 {[%clk 0:00:52]} 27. Bg5 {[%clk 0:00:54]}  Nh5 {[%clk 0:00:45]} 28. Nxh5 {[%clk 0:00:49]}  Qxh5 {[%clk 0:00:39]} 29. Qf4 {[%clk 0:00:48]}  Bd6 {[%clk 0:00:37]} 30. Qxd6 {[%clk 0:00:39]}  Qxg5+ {[%clk 0:00:37]} 31. Kf1 {[%clk 0:00:39]}  Qxh6 {[%clk 0:00:35]} 32. Kg2 {[%clk 0:00:33]}  Qg5+ {[%clk 0:00:35]} 33. Kf1 {[%clk 0:00:30]}  d4 {[%clk 0:00:31]} 34. Qd7 {[%clk 0:00:22]}  Re7 {[%clk 0:00:27]} 35. Qd6 {[%clk 0:00:17]}  Bxf3 {[%clk 0:00:24]} 36. Qg3 {[%clk 0:00:15]}  Qh5 {[%clk 0:00:20]} 0-1


[Site "https://www.chess.com"]

[Event "Early Titled Tuesday Blitz | February 8 2022"]
[White "Chincholimath, Halsagar"]
[Black "Maltsevskaya, Aleksandra"]
[WhiteFideId "5022487"]
[BlackFideId "24174041"]
[WhiteElo "1737"]
[BlackElo "2283"]
[Result "0-1"]
[Round "01"]
[TimeControl "180+1"]
[Date "2022.02.08"]
[WhiteClock "0:01:18"]
[BlackClock "0:00:04"]

1. e4 {[%clk 0:03:00]}  c6 {[%clk 0:02:37]} 2. Bc4 {[%clk 0:02:58]}  d5 {[%clk 0:02:37]} 3. Bb3 {[%clk 0:02:58]}  dxe4 {[%clk 0:02:30]} 4. Qh5 {[%clk 0:02:58]}  g6 {[%clk 0:02:19]} 5. Qh4 {[%clk 0:02:58]}  Nf6 {[%clk 0:02:19]} 6. Nc3 {[%clk 0:02:56]}  Bg7 {[%clk 0:02:10]} 7. f3 {[%clk 0:02:57]}  e3 {[%clk 0:01:30]} 8. dxe3 {[%clk 0:02:52]}  Nbd7 {[%clk 0:01:27]} 9. Nge2 {[%clk 0:02:44]}  Nc5 {[%clk 0:01:09]} 10. O-O {[%clk 0:02:39]}  Nxb3 {[%clk 0:01:08]} 11. axb3 {[%clk 0:02:40]}  O-O {[%clk 0:01:07]} 12. e4 {[%clk 0:02:18]}  Qb6+ {[%clk 0:00:58]} 13. Kh1 {[%clk 0:02:16]}  Bd7 {[%clk 0:00:48]} 14. Bh6 {[%clk 0:02:14]}  Rfd8 {[%clk 0:00:47]} 15. Nf4 {[%clk 0:02:08]}  Bxh6 {[%clk 0:00:36]} 16. Qxh6 {[%clk 0:02:05]}  Qc5 {[%clk 0:00:24]} 17. Nce2 {[%clk 0:01:57]}  Qxc2 {[%clk 0:00:23]} 18. Ng3 {[%clk 0:01:56]}  Qc5 {[%clk 0:00:16]} 19. Rad1 {[%clk 0:01:44]}  Be8 {[%clk 0:00:15]} 20. Rc1 {[%clk 0:01:42]}  Qe5 {[%clk 0:00:15]} 21. Nh3 {[%clk 0:01:40]}  c5 {[%clk 0:00:07]} 22. Ng5 {[%clk 0:01:40]}  b6 {[%clk 0:00:07]} 23. f4 {[%clk 0:01:34]}  Qxb2 {[%clk 0:00:06]} 24. e5 {[%clk 0:01:30]}  Rd2 {[%clk 0:00:05]} 25. exf6 {[%clk 0:01:29]}  exf6 {[%clk 0:00:05]} 26. Qxh7+ {[%clk 0:01:23]}  Kf8 {[%clk 0:00:05]} 27. Rce1 {[%clk 0:01:23]}  fxg5 {[%clk 0:00:01]} 28. Qh8+ {[%clk 0:01:22]}  Qxh8 {[%clk 0:00:02]} 29. f5 {[%clk 0:01:21]}  Bc6 {[%clk 0:00:02]} 30. fxg6 {[%clk 0:01:21]}  Bxg2+ {[%clk 0:00:03]} 31. Kg1 {[%clk 0:01:20]}  Bxf1 {[%clk 0:00:03]} 32. Kxf1 {[%clk 0:01:20]}  Qd4 {[%clk 0:00:04]} 33. Re4 {[%clk 0:01:18]}  Qf2# {[%clk 0:00:04]} 0-1


[Site "https://www.chess.com"]